fUSD/lending_fUSD_20240612
["ID","MTS","AMOUNT","RATE_DAILY","PERIOD"]
[329207277,1718179882892,-500.0,0.00019726,2]
[329207278,1718179882919,-500.0,0.00019726,2]
[329207279,1718179882932,-5154.03,0.00019726,2]
[329207280,1718179882943,-500.0,0.00019726,2]
[329207281,1718179882963,-500.0,0.00019726,2]
[329207282,1718179882973,-571.46,0.00019726,2]
[329207283,1718179882983,-500.0,0.00019726,2]
[329207284,1718179882994,-151.0,0.00019726,2]
[329207285,1718179883012,-500.0,0.00019726,2]
[329207286,1718179883022,-1104.84,0.00019726,2]
[329207287,1718179883032,-1878.34,0.00019726,2]
[329207288,1718179883041,-500.0,0.00019726,2]
[329207289,1718179883052,-500.0,0.00019726,2]
[329207290,1718179883061,-627.95,0.00019726,2]
[329207291,1718179883073,-1013.51,0.00019726,2]
[329207292,1718179883083,-500.0,0.00019726,2]
[329207293,1718179883093,-151.0,0.00019726,2]
[329207294,1718179883103,-1682.34,0.00019726,2]
[329207295,1718179883114,-500.0,0.00019726,2]
[329207296,1718179883124,-160.749647,0.00019726,2]
[329207297,1718179883138,-554.42,0.00019726,2]
[329207298,1718179883148,-360.28,0.00019726,2]
[329207299,1718179883159,-500.0,0.00019726,2]
[329207300,1718179883168,-657.62,0.00019726,2]
[329207301,1718179883179,-556.25,0.00019726,2]
[329207302,1718179883190,-1495.23,0.00019726,2]
[329207303,1718179883203,-1140.33,0.00019726,2]
[329207304,1718179883214,-1341.78,0.00019726,2]
[329207305,1718179883225,-602.14,0.00019726,2]
[329207306,1718179883237,-204.382934,0.00019726,2]
[329207307,1718179883262,-500.0,0.00019726,2]
[329207308,1718179883278,-786.61,0.00019726,2]
[329207309,1718179883289,-204.382934,0.00019726,2]
[329207310,1718179883300,-1464.63,0.00019726,2]
[329207311,1718179883310,-500.0,0.00019726,2]
[329207312,1718179883323,-3094.25,0.00019726,2]
[329207313,1718179883334,-548.65,0.00019726,2]
[329207314,1718179883346,-729.37,0.00019726,2]
[329207315,1718179883357,-500.0,0.00019726,2]
[329207316,1718179883368,-500.0,0.00019726,2]
[329207317,1718179883380,-2263.73,0.00019726,2]
[329207318,1718179883390,-765.32,0.00019726,2]
[329207319,1718179883402,-500.0,0.00019726,2]
[329207320,1718179883414,-500.0,0.00019726,2]
[329207321,1718179883428,-500.0,0.00019726,2]
[329207322,1718179883440,-1702.33,0.00019726,2]
[329207323,1718179883452,-1162.18,0.00019726,2]
[329207324,1718179883462,-725.2,0.00019726,2]
[329207325,1718179883473,-702.53,0.00019726,2]
[329207326,1718179883484,-1306.52,0.00019726,2]
[329207327,1718179883495,-500.0,0.00019726,2]
[329207328,1718179883508,-767.7,0.00019726,2]
[329207329,1718179883519,-669.7,0.00019726,2]
[329207330,1718179883529,-8345.51,0.00019726,2]
[329207331,1718179883548,-4404.89,0.00019726,2]
[329207332,1718179883576,-500.0,0.00019726,2]
[329207333,1718179883596,-5540.12,0.00019726,2]
[329207334,1718179883613,-3202.06,0.00019726,2]
[329207335,1718179883626,-645.85,0.00019726,2]
[329207336,1718179883639,-440.396966,0.00019726,2]
[329207337,1718179883650,-708.44,0.00019726,2]
[329207338,1718179883663,-1864.65,0.00019726,2]
[329207339,1718179883673,-440.396966,0.00019726,2]
[329207340,1718179883683,-650.82,0.00019726,2]
[329207341,1718179883693,-3275.86,0.00019726,2]
[329207342,1718179883703,-3174.73,0.00019726,2]
[329207343,1718179883713,-1358.37,0.00019726,2]
[329207344,1718179883723,-532.25,0.00019726,2]
[329207345,1718179883733,-758.42,0.00019726,2]
[329207346,1718179883743,-500.0,0.00019726,2]
[329207347,1718179883754,-1640.18,0.00019726,2]
[329207348,1718179883775,-6201.69,0.00019726,2]
[329207349,1718179883788,-500.0,0.00019726,2]
[329207350,1718179883798,-869.55,0.00019726,2]
[329207351,1718179883841,-1305.49,0.00019726,2]
[329207352,1718179883851,-500.0,0.00019726,2]
[329207353,1718179883871,-500.0,0.00019726,2]
[329207354,1718179883882,-500.0,0.00019726,2]
[329207355,1718179883904,-741.75,0.00019726,2]
[329207356,1718179883921,-500.0,0.00019726,2]
[329207357,1718179883933,-1607.87,0.00019726,2]
[329207358,1718179883946,-500.0,0.00019726,2]
[329207359,1718179883957,-2431.96,0.00019726,2]
[329207360,1718179883967,-3330.66,0.00019726,2]
[329207361,1718179883978,-500.0,0.00019726,2]
[329207362,1718179883989,-13640.9,0.00019726,2]
[329207363,1718179884006,-500.0,0.00019726,2]
[329207364,1718179884017,-959.76,0.00019726,2]
[329207365,1718179884057,-985.74,0.00019726,2]
[329207366,1718179884072,-20922.27,0.00019726,2]
[329207367,1718179884083,-781.81,0.00019726,2]
[329207368,1718179884093,-2448.83,0.00019726,2]
[329207369,1718179884117,-646.05,0.00019726,2]
[329207370,1718179884141,-500.0,0.00019726,2]
[329207371,1718179884152,-151.0,0.00019726,2]
[329207372,1718179884164,-1431.31,0.00019726,2]
[329207373,1718179884195,-1683.61,0.00019726,2]
[329207374,1718179884236,-4769.74,0.00019726,2]
[329207375,1718179884249,-732.06,0.00019726,2]
[329207376,1718179884266,-500.0,0.00019726,2]
[329207377,1718179884278,-528.34,0.00019726,2]
[329207378,1718179884304,-752.97,0.00019726,2]
[329207379,1718179884317,-8377.53,0.00019726,2]
[329207380,1718179884328,-2216.48,0.00019726,2]
[329207381,1718179884339,-3266.79,0.00019726,2]
[329207382,1718179884368,-272.4694978,0.00019726,2]
[329207383,1718179884379,-850.88,0.00019726,2]
[329207384,1718179884407,-1690.57,0.00019726,2]
[329207385,1718179884418,-599.3,0.00019726,2]
[329207386,1718179884430,-1406.49,0.00019726,2]
[329207387,1718179884440,-500.0,0.00019726,2]
[329207388,1718179884457,-2196.58,0.00019726,2]
[329207389,1718179884506,-1073.07,0.00019726,2]
[329207390,1718179884517,-2273.25,0.00019726,2]
[329207391,1718179884531,-798.97,0.00019726,2]
[329207392,1718179884555,-611.43,0.00019726,2]
[329207393,1718179884566,-946.15,0.00019726,2]
[329207394,1718179884577,-1156.44,0.00019726,2]
[329207395,1718179884588,-500.0,0.00019726,2]
[329207396,1718179884600,-1214.62,0.00019726,2]
[329207397,1718179884616,-1976.41,0.00019726,2]
[329207398,1718179884641,-151.0,0.00019726,2]
[329207399,1718179884658,-500.0,0.00019726,2]
[329207400,1718179884673,-500.0,0.00019726,2]
[329207401,1718179884684,-500.0,0.00019726,2]
[329207402,1718179884700,-827.97,0.00019726,2]
[329207403,1718179884710,-2301.96,0.00019726,2]
[329207404,1718179884729,-500.0,0.00019726,2]
[329207405,1718179884742,-500.0,0.00019726,2]
[329207406,1718179884756,-1787.41,0.00019726,2]
[329207407,1718179884769,-712.85,0.00019726,2]
[329207408,1718179884788,-776.27,0.00019726,2]
[329207409,1718179884812,-2018.59,0.00019726,2]
[329207410,1718179884843,-500.0,0.00019726,2]
[329207411,1718179884854,-3499.28,0.00019726,2]
[329207412,1718179884883,-500.0,0.00019726,2]
[329207413,1718179884894,-171.28,0.00019726,2]
[329207414,1718179885011,-2334.85,0.00019726,2]
[329207415,1718179885032,-1624.86,0.00019726,2]
[329207416,1718179885047,-151.0,0.00019726,2]
[329207417,1718179885060,-1631.49,0.00019726,2]
[329207418,1718179885074,-151.0,0.00019726,2]
[329207419,1718179885089,-500.0,0.00019726,2]
[329207420,1718179885102,-522.67,0.00019726,2]
[329207421,1718179885124,-500.0,0.00019726,2]
[329207422,1718179885136,-588.24,0.00019726,2]
[329207423,1718179885162,-581.13,0.00019726,2]
[329207424,1718179885176,-2080.69,0.00019726,2]
[329207425,1718179885188,-1563.88,0.00019726,2]
[329207426,1718179885202,-500.0,0.00019726,2]
[329207427,1718179885215,-579.52,0.00019726,2]
[329207428,1718179885236,-500.0,0.00019726,2]
[329207429,1718179885247,-815.55,0.00019726,2]
[329207430,1718179885260,-1713.36,0.00019726,2]
[329207431,1718179885272,-500.0,0.00019726,2]
[329207432,1718179885288,-630.18,0.00019726,2]
[329207433,1718179885305,-561.92,0.00019726,2]
[329207434,1718179885317,-862.44,0.00019726,2]
[329207435,1718179885329,-2346.36,0.00019726,2]
[329207436,1718179885340,-841.69,0.00019726,2]
[329207437,1718179885353,-151.0,0.00019726,2]
[329207438,1718179885364,-1435.09,0.00019726,2]
[329207439,1718179885375,-500.0,0.00019726,2]
[329207440,1718179885393,-680.87,0.00019726,2]
[329207441,1718179885404,-500.0,0.00019726,2]
[329207442,1718179885419,-500.0,0.00019726,2]
[329207443,1718179885429,-608.16,0.00019726,2]
[329207444,1718179885443,-1513.03,0.00019726,2]
[329207445,1718179885459,-1088.82,0.00019726,2]
[329207446,1718179885471,-500.0,0.00019726,2]
[329207447,1718179885512,-598.23,0.00019726,2]
[329207448,1718179885534,-1610.34,0.00019726,2]
[329207449,1718179885545,-1146.85,0.00019726,2]
[329207450,1718179885568,-500.0,0.00019726,2]
[329207451,1718179885579,-2935.06,0.00019726,2]
[329207452,1718179885590,-367.611845,0.00019726,2]
[329207453,1718179885603,-1560.5,0.00019726,2]
[329207454,1718179885614,-1110.46,0.00019726,2]
[329207455,1718179885638,-3368.07,0.00019726,2]
[329207456,1718179885654,-500.0,0.00019726,2]
[329207457,1718179885676,-500.0,0.00019726,2]
[329207458,1718179885696,-1458.49,0.00019726,2]
[329207459,1718179885715,-367.611845,0.00019726,2]
[329207460,1718179885727,-1622.89,0.00019726,2]
[329207461,1718179885739,-500.0,0.00019726,2]
[329207462,1718179885758,-659.53,0.00019726,2]
[329207463,1718179885773,-500.0,0.00019726,2]
[329207464,1718179885818,-500.0,0.00019726,2]
[329207465,1718179885853,-500.0,0.00019726,2]
[329207466,1718179885867,-1850.34,0.00019726,2]
[329207467,1718179885880,-4181.59,0.00019726,2]
[329207468,1718179885892,-500.0,0.00019726,2]
[329207469,1718179885909,-500.0,0.00019726,2]
[329207470,1718179885929,-4021.68,0.00019726,2]
[329207471,1718179885945,-500.0,0.00019726,2]
[329207472,1718179885982,-6014.5,0.00019726,2]
[329207473,1718179885994,-654.73,0.00019726,2]
[329207474,1718179886016,-1952.21,0.00019726,2]
[329207475,1718179886029,-1117.79,0.00019726,2]
[329207476,1718179886048,-1297.98,0.00019726,2]
[329207477,1718179886061,-500.0,0.00019726,2]
[329207478,1718179886075,-564.66,0.00019726,2]
[329207479,1718179886104,-519.65,0.00019726,2]
[329207480,1718179886116,-1076.94,0.00019726,2]
[329207481,1718179886139,-1166.76,0.00019726,2]
[329207482,1718179886149,-2703.35,0.00019726,2]
[329207483,1718179886185,-1069.66,0.00019726,2]
[329207484,1718179886200,-198.7148192,0.00019726,2]
[329207485,1718179886213,-1867.83,0.00019726,2]
[329207486,1718179886226,-500.0,0.00019726,2]
[329207487,1718179886239,-565.97,0.00019726,2]
[329207488,1718179886251,-776.3,0.00019726,2]
[329207489,1718179886273,-1848.86,0.00019726,2]
[329207490,1718179886286,-2575.38,0.00019726,2]
[329207491,1718179886297,-521.86,0.00019726,2]
[329207492,1718179886321,-500.0,0.00019726,2]
[329207493,1718179886332,-2537.91,0.00019726,2]
[329207494,1718179886351,-1628.72,0.00019726,2]
[329207495,1718179886362,-500.0,0.00019726,2]
[329207496,1718179886374,-500.0,0.00019726,2]
[329207497,1718179886391,-151.0,0.00019726,2]
[329207498,1718179886465,-783.13,0.00019726,2]
[329207499,1718179886477,-1452.19574907,0.00019804,2]
[329207500,1718179886500,-500.0,0.00019863,2]
[329207501,1718179886523,-778.55,0.00019863,2]
[329207502,1718179886535,-500.0,0.00019863,2]
[329207503,1718179886551,-500.0,0.00019863,2]
[329207504,1718179886565,-500.0,0.00019863,2]
[329207505,1718179886584,-500.0,0.00019863,2]
[329207506,1718179886597,-500.0,0.00019863,2]
[329207507,1718179886608,-500.0,0.00019863,2]
[329207508,1718179886620,-500.0,0.00019863,2]
[329207509,1718179886633,-500.0,0.00019863,2]
[329207510,1718179886651,-500.0,0.00019863,2]
[329207511,1718179886678,-500.0,0.00019863,2]
[329207512,1718179886694,-500.0,0.00019863,2]
[329207513,1718179886705,-500.0,0.00019863,2]
[329207514,1718179886720,-500.0,0.00019863,2]
[329207515,1718179886735,-592.95,0.00019863,2]
[329207516,1718179886753,-500.0,0.00019863,2]
[329207517,1718179886768,-613.54286838,0.00019863,2]
[329207518,1718179886779,-343.58440101,0.00019863,2]
[329207519,1718179886800,-764.7,0.00019863,2]
[329207520,1718179886841,-773.85,0.00019863,2]
[329207521,1718179886854,-500.0,0.00019863,2]
[329207522,1718179886865,-500.0,0.00019863,2]
[329207523,1718179886879,-500.0,0.00019863,2]
[329207524,1718179886906,-500.0,0.00019863,2]
[329207525,1718179886947,-500.0,0.00019863,2]
[329207526,1718179886959,-500.0,0.00019863,2]
[329207527,1718179886972,-500.0,0.00019863,2]
[329207528,1718179887005,-667.4,0.00019863,2]
[329207529,1718179887018,-500.0,0.00019863,2]
[329207530,1718179887029,-500.0,0.00019863,2]
[329207531,1718179887046,-500.0,0.00019863,2]
[329207532,1718179887060,-500.0,0.00019863,2]
[329207533,1718179887071,-500.0,0.00019863,2]
[329207534,1718179887081,-500.0,0.00019863,2]
[329207535,1718179887094,-500.0,0.00019863,2]
[329207536,1718179887112,-454.78477685,0.00019863,2]
[329207537,1718179887129,-500.0,0.00019863,2]
[329207538,1718179887149,-716.21,0.00019863,2]
[329207539,1718179887163,-500.0,0.00019863,2]
[329207540,1718179887174,-500.0,0.00019863,2]
[329207541,1718179887194,-500.0,0.00019863,2]
[329207542,1718179887209,-697.14,0.00019863,2]
[329207543,1718179887222,-500.0,0.00019863,2]
[329207544,1718179887256,-500.0,0.00019863,2]
[329207545,1718179887278,-500.0,0.00019863,2]
[329207546,1718179887303,-500.0,0.00019863,2]
[329207547,1718179887342,-458.39753795,0.00019863,2]
[329207548,1718179887354,-251.08589574,0.00019863,2]
[329207549,1718179887372,-500.0,0.00019863,2]
[329207550,1718179887394,-1218.09,0.00019863,2]
[329207551,1718179887416,-500.0,0.00019863,2]
[329207552,1718179887431,-756.11,0.00019863,2]
[329207553,1718179887444,-500.0,0.00019863,2]
[329207554,1718179887471,-500.0,0.00019863,2]
[329207555,1718179887487,-651.5,0.00019863,2]
[329207556,1718179887509,-500.0,0.00019863,2]
[329207557,1718179887521,-500.0,0.00019863,2]
[329207558,1718179887535,-500.0,0.00019863,2]
[329207559,1718179887560,-2999.85,0.00019863,2]
[329207560,1718179887572,-500.0,0.00019863,2]
[329207561,1718179887585,-500.0,0.00019863,2]
[329207562,1718179887624,-500.0,0.00019863,2]
[329207563,1718179887637,-500.0,0.00019863,2]
[329207564,1718179887647,-965.08,0.00019863,2]
[329207565,1718179887664,-500.0,0.00019863,2]
[329207566,1718179887681,-500.0,0.00019863,2]
[329207567,1718179887714,-500.0,0.00019863,2]
[329207568,1718179887740,-500.0,0.00019863,2]
[329207569,1718179887767,-151.0,0.00019863,2]
[329207570,1718179887801,-500.0,0.00019863,2]
[329207571,1718179887842,-500.0,0.00019863,2]
[329207572,1718179887860,-500.0,0.00019863,2]
[329207573,1718179887879,-500.0,0.00019863,2]
[329207574,1718179887890,-500.0,0.00019863,2]
[329207575,1718179887918,-500.0,0.00019863,2]
[329207576,1718179887946,-500.0,0.00019863,2]
[329207577,1718179887972,-500.0,0.00019863,2]
[329207578,1718179887992,-500.0,0.00019863,2]
[329207579,1718179888010,-778.27,0.00019863,2]
[329207580,1718179888033,-500.0,0.00019863,2]
[329207581,1718179888044,-500.0,0.00019863,2]
[329207582,1718179888071,-500.0,0.00019863,2]
[329207583,1718179888083,-518.38,0.00019863,2]
[329207584,1718179888103,-500.0,0.00019863,2]
[329207585,1718179888115,-651.15,0.00019863,2]
[329207586,1718179888129,-544.62,0.00019863,2]
[329207587,1718179888155,-500.0,0.00019863,2]
[329207588,1718179888166,-539.46768532,0.00019863,2]
[329207589,1718179888177,-606.45,0.00019863,2]
[329207590,1718179888201,-500.0,0.00019863,2]
[329207591,1718179888226,-500.0,0.00019863,2]
[329207592,1718179888241,-1056.74,0.00019863,2]
[329207593,1718179888259,-500.0,0.00019863,2]
[329207594,1718179888282,-540.46,0.00019863,2]
[329207595,1718179888318,-500.0,0.00019863,2]
[329207596,1718179888353,-500.0,0.00019863,2]
[329207597,1718179888367,-500.0,0.00019863,2]
[329207598,1718179888381,-578.43,0.00019863,2]
[329207599,1718179888395,-415.71792024,0.00019863,2]
[329207600,1718179888410,-1024.84,0.00019863,2]
[329207601,1718179888422,-500.0,0.00019863,2]
[329207602,1718179888432,-500.0,0.00019863,2]
[329207603,1718179888443,-500.0,0.00019863,2]
[329207604,1718179888459,-500.0,0.00019863,2]
[329207605,1718179888476,-500.0,0.00019863,2]
[329207606,1718179888514,-224.61637065,0.00019863,2]
[329207607,1718179888534,-500.0,0.00019863,2]
[329207608,1718179888547,-500.0,0.00019863,2]
[329207609,1718179888558,-500.0,0.00019863,2]
[329207610,1718179888590,-252.81964889,0.00019863,2]
[329207611,1718179888617,-500.0,0.00019863,2]
[329207612,1718179888630,-536.07,0.00019863,2]
[329207613,1718179888647,-500.0,0.00019863,2]
[329207614,1718179888663,-500.0,0.00019863,2]
[329207615,1718179888679,-500.0,0.00019863,2]
[329207616,1718179888690,-500.0,0.00019863,2]
[329207617,1718179888712,-707.31,0.00019863,2]
[329207618,1718179888723,-1691.32,0.00019863,2]
[329207619,1718179888733,-500.0,0.00019863,2]
[329207620,1718179888744,-500.0,0.00019863,2]
[329207621,1718179888755,-500.0,0.00019863,2]
[329207622,1718179888771,-500.0,0.00019863,2]
[329207623,1718179888794,-718.6,0.00019863,2]
[329207624,1718179888846,-1353.94,0.00019863,2]
[329207625,1718179888876,-676.25,0.00019863,2]
[329207626,1718179888891,-500.0,0.00019863,2]
[329207627,1718179888905,-500.0,0.00019863,2]
[329207628,1718179888923,-500.0,0.00019863,2]
[329207629,1718179888935,-836.78,0.00019863,2]
[329207630,1718179888946,-500.0,0.00019863,2]
[329207631,1718179888957,-150.0,0.00019863,2]
[329207632,1718179889244,-608.63191281,0.00019863,2]
[329207633,1718179889270,-500.0,0.00019863,2]
[329207634,1718179889290,-854.16,0.00019863,2]
[329207635,1718179889314,-500.0,0.00019863,2]
[329207636,1718179889325,-500.0,0.00019863,2]
[329207637,1718179889343,-835.22,0.00019863,2]
[329207638,1718179889358,-500.0,0.00019863,2]
[329207639,1718179889371,-500.0,0.00019863,2]
[329207640,1718179889394,-500.0,0.00019863,2]
[329207641,1718179889415,-500.0,0.00019863,2]
[329207642,1718179889427,-500.0,0.00019863,2]
[329207643,1718179889441,-587.12,0.00019863,2]
[329207644,1718179889457,-500.0,0.00019863,2]
[329207645,1718179889474,-2397.48,0.00019863,2]
[329207646,1718179889485,-500.0,0.00019863,2]
[329207647,1718179889497,-500.0,0.00019863,2]
[329207648,1718179889509,-695.08,0.00019863,2]
[329207649,1718179889521,-500.0,0.00019863,2]
[329207650,1718179889532,-500.0,0.00019863,2]
[329207651,1718179889559,-500.0,0.00019863,2]
[329207652,1718179889575,-500.0,0.00019863,2]
[329207653,1718179889587,-500.0,0.00019863,2]
[329207654,1718179889600,-1151.02,0.00019863,2]
[329207655,1718179889627,-500.0,0.00019863,2]
[329207656,1718179889644,-500.0,0.00019863,2]
[329207657,1718179889696,-632.89,0.00019863,2]
[329207658,1718179889709,-562.35,0.00019863,2]
[329207659,1718179889720,-500.0,0.00019863,2]
[329207660,1718179889732,-814.74,0.00019863,2]
[329207661,1718179889743,-500.0,0.00019863,2]
[329207662,1718179889759,-788.12,0.00019863,2]
[329207663,1718179889772,-692.77,0.00019863,2]
[329207664,1718179889783,-500.0,0.00019863,2]
[329207665,1718179889795,-500.0,0.00019863,2]
[329207666,1718179889817,-801.05,0.00019863,2]
[329207667,1718179889836,-2426.35,0.00019863,2]
[329207668,1718179889848,-500.0,0.00019863,2]
[329207669,1718179889864,-500.0,0.00019863,2]
[329207670,1718179889882,-500.0,0.00019863,2]
[329207671,1718179889903,-667.95,0.00019863,2]
[329207672,1718179889913,-1312.22,0.00019863,2]
[329207673,1718179889933,-500.0,0.00019863,2]
[329207674,1718179889951,-701.84,0.00019863,2]
[329207675,1718179889965,-500.0,0.00019863,2]
[329207676,1718179889981,-855.19,0.00019863,2]
[329207677,1718179889994,-500.0,0.00019863,2]
[329207678,1718179890009,-500.0,0.00019863,2]
[329207679,1718179890022,-500.0,0.00019863,2]
[329207680,1718179890036,-5154.03,0.00019863,2]
[329207681,1718179890076,-500.0,0.00019863,2]
[329207682,1718179890094,-500.0,0.00019863,2]
[329207683,1718179890105,-571.46,0.00019863,2]
[329207684,1718179890116,-500.0,0.00019863,2]
[329207685,1718179890131,-151.0,0.00019863,2]
[329207686,1718179890145,-321.47105862,0.00019863,2]
[329207687,1718179890159,-1104.84,0.00019863,2]
[329207688,1718179890169,-1878.34,0.00019863,2]
[329207689,1718179890179,-500.0,0.00019863,2]
[329207690,1718179890191,-500.0,0.00019863,2]
[329207691,1718179890224,-627.95,0.00019863,2]
[329207692,1718179890239,-1013.51,0.00019863,2]
[329207693,1718179890276,-500.0,0.00019863,2]
[329207694,1718179890287,-151.0,0.00019863,2]
[329207695,1718179890300,-1682.34,0.00019863,2]
[329207696,1718179890314,-500.0,0.00019863,2]
[329207697,1718179890325,-554.42,0.00019863,2]
[329207698,1718179890336,-500.0,0.00019863,2]
[329207699,1718179890348,-657.62,0.00019863,2]
[329207700,1718179890360,-556.25,0.00019863,2]
[329207701,1718179890372,-1495.23,0.00019863,2]
[329207702,1718179890389,-1140.33,0.00019863,2]
[329207703,1718179890408,-1341.78,0.00019863,2]
[329207704,1718179890421,-602.14,0.00019863,2]
[329207705,1718179890432,-204.382934,0.00019863,2]
[329207706,1718179890444,-500.0,0.00019863,2]
[329207707,1718179890459,-786.61,0.00019863,2]
[329207708,1718179890480,-204.382934,0.00019863,2]
[329207709,1718179890490,-1464.63,0.00019863,2]
[329207710,1718179890507,-500.0,0.00019863,2]
[329207711,1718179890530,-3094.25,0.00019863,2]
[329207712,1718179890542,-548.65,0.00019863,2]
[329207713,1718179890558,-729.37,0.00019863,2]
[329207714,1718179890578,-500.0,0.00019863,2]
[329207715,1718179890589,-500.0,0.00019863,2]
[329207716,1718179890605,-2263.73,0.00019863,2]
[329207717,1718179890617,-765.32,0.00019863,2]
[329207718,1718179890632,-373.04,0.00019863,2]
[329207719,1718179890646,-500.0,0.00019863,2]
[329207720,1718179890665,-500.0,0.00019863,2]
[329207721,1718179890680,-1702.33,0.00019863,2]
[329207722,1718179890693,-1162.18,0.00019863,2]
[329207723,1718179890710,-725.2,0.00019863,2]
[329207724,1718179890725,-702.53,0.00019863,2]
[329207725,1718179890736,-500.0,0.00019863,2]
[329207726,1718179890747,-1306.52,0.00019863,2]
[329207727,1718179890761,-767.7,0.00019863,2]
[329207728,1718179890772,-669.7,0.00019863,2]
[329207729,1718179890782,-8345.51,0.00019863,2]
[329207730,1718179890793,-4404.89,0.00019863,2]
[329207731,1718179890803,-500.0,0.00019863,2]
[329207732,1718179890832,-5540.12,0.00019863,2]
[329207733,1718179890844,-3202.06,0.00019863,2]
[329207734,1718179890863,-645.85,0.00019863,2]
[329207735,1718179890883,-440.396966,0.00019863,2]
[329207736,1718179890894,-708.44,0.00019863,2]
[329207737,1718179890908,-1864.65,0.00019863,2]
[329207738,1718179890932,-440.396966,0.00019863,2]
[329207739,1718179890949,-650.82,0.00019863,2]
[329207740,1718179890962,-3275.86,0.00019863,2]
[329207741,1718179890976,-3174.73,0.00019863,2]
[329207742,1718179890987,-1358.37,0.00019863,2]
[329207743,1718179891005,-532.25,0.00019863,2]
[329207744,1718179891018,-758.42,0.00019863,2]
[329207745,1718179891028,-500.0,0.00019863,2]
[329207746,1718179891038,-1640.18,0.00019863,2]
[329207747,1718179891054,-6201.69,0.00019863,2]
[329207748,1718179891065,-869.55,0.00019863,2]
[329207749,1718179891076,-1305.49,0.00019863,2]
[329207750,1718179891088,-500.0,0.00019863,2]
[329207751,1718179891099,-271.44990697,0.00019863,2]
[329207752,1718179891110,-418.11794018,0.00019863,2]
[329207753,1718179891121,-741.75,0.00019863,2]
[329207754,1718179891131,-500.0,0.00019863,2]
[329207755,1718179891142,-1607.87,0.00019863,2]
[329207756,1718179891152,-500.0,0.00019863,2]
[329207757,1718179891165,-2431.96,0.00019863,2]
[329207758,1718179891177,-3330.66,0.00019863,2]
[329207759,1718179891187,-500.0,0.00019863,2]
[329207760,1718179891198,-500.0,0.00019863,2]
[329207761,1718179891210,-500.0,0.00019863,2]
[329207762,1718179891226,-13640.9,0.00019863,2]
[329207763,1718179891237,-959.76,0.00019863,2]
[329207764,1718179891247,-985.74,0.00019863,2]
[329207765,1718179891258,-20922.27,0.00019863,2]
[329207766,1718179891270,-781.81,0.00019863,2]
[329207767,1718179891280,-2448.83,0.00019863,2]
[329207768,1718179891291,-646.05,0.00019863,2]
[329207769,1718179891303,-500.0,0.00019863,2]
[329207770,1718179891322,-151.0,0.00019863,2]
[329207771,1718179891336,-1431.31,0.00019863,2]
[329207772,1718179891350,-1683.61,0.00019863,2]
[329207773,1718179891364,-4769.74,0.00019863,2]
[329207774,1718179891377,-732.06,0.00019863,2]
[329207775,1718179891390,-500.0,0.00019863,2]
[329207776,1718179891403,-528.34,0.00019863,2]